Cogmind - Beta 11 @@@ ROGUE MODE // 2022.03.20 @ 11:37:06 Player: Finestep Result: Destroyed by H-71 Marshal with Heavy Mass Driver Performance ------------- Evolutions (6) 3000 Regions Visited (17) 3400 Robots Destroyed (377) 1885 Value Destroyed (16201) 16201 Prototype IDs (24) 480 Alien Tech Used (0) 0 Bonus (5444) 5444 TOTAL SCORE: 30410 Bonus ------- High Alert Combat Kills 2895 Follower Combat Kills 1911 Entered Garrisons 800 Used RIF Installer 2000 Friendly Fire -2162 Cogmind --------- Core Integrity 0/1150 Matter 86/300 Energy 46/100 System Corruption 31% Temperature Cool (0) Movement Core (50) Location -4/Factory Parts ------- > --- POWER (2) -------- (None) > --- PROPULSION (6) --- (None) > --- UTILITY (8) ------ Relay Coupler [NC] (36) > --- WEAPON (3) ------- (None) > --- INVENTORY (5) ---- Graphene Brace Relay Coupler [Heavy] (17) Heavy Wave Gun Coil Gun Peak State ------------ > --- POWER ------------ Heavy Antimatter Reactor Heavy Antimatter Reactor > --- PROPULSION ------- Improved Medium Treads Improved Medium Treads Myomer Leg Myomer Leg Compact Wheel Compact Wheel > --- UTILITY ---------- Huge Storage Unit Experimental Sensor Array Advanced Signal Interpreter Targeting Computer Core Analyzer Advanced Transmission Jammer Layered Heavy Armor Plating > --- WEAPON ----------- HERF Cannon Heavy Machine Gun Heavy Machine Gun > --- INVENTORY -------- Heavy Antimatter Reactor Improved Fusion Compressor Advanced Heat Sink Improved Matter Compressor Precision Matter Filter Improved Weapon Cycler Improved Medium Armor Plating Layered Heavy Armor Plating Graphene Brace Advanced Shield Generator Relay Coupler [NC] Relay Coupler [NC] Relay Coupler [Swarmer] Relay Coupler [Grunt] Relay Coupler [Heavy] Relay Coupler [Heavy] Relay Coupler [Behemoth] Heavy EM Shotgun Heavy EM Shotgun Hardcell Cannon Heavy Proton Missile Launcher Improved Remote Datajack Improved Remote Datajack Phasing Sabre [Rating: 111] Favorites ----------- Power Reinforced Deuterium Engine Engine Reinforced Deuterium Engine Power Core Reinforced Fission Core Reactor Heavy Antimatter Reactor Propulsion Light Treads Treads Light Treads Leg Carbon-fiber Leg Wheel Armored Wheel Utility Huge Storage Unit Device Weapon Cycler Storage Huge Storage Unit Processor Improved Signal Interpreter Hackware Relay Coupler [Grunt] Protection Medium Armor Plating Weapon Improved Assault Rifle Energy Gun Heavy EM Shotgun Energy Cannon Improved EM Pulse Cannon Ballistic Gun Improved Assault Rifle Ballistic Cannon Enhanced Gauss Cannon Launcher Rocket Launcher Special Weapon Improved Remote Datajack Slashing Weapon Phasing Sabre Build | -11 -10 -10 -9 -9 -9 -8 -8 -8 -7 -7 -7 -7 -6 -6 -5 -5 -4 ------- Run | Scr Mat Min Mat Min Exi Min Mat Gar Fac Gar Fac Gar Fac Gar Fac Ext Fac Slots Evolved 12 | . . . 2 . . . 2 . 2 . . . 2 . 2 . 2 Power 1 | . . . . . . . . . . . . . 1 . . . . Propulsion 4 | . . . 1 . . . . . 1 . . . . . 1 . 1 Utility 6 | . . . 1 . . . 1 . 1 . . . 1 . 1 . 1 Weapon 1 | . . . . . . . 1 . . . . . . . . . . Parts Attached 463 | 7 6 9 20 11 2 . 75 17 50 24 5 27 5 26 78 50 51 Power 25 | 1 . 1 2 1 . . 3 . . 2 . . 1 1 6 3 4 Engine 12 | 1 . 1 2 1 . . 2 . . 2 . . 1 1 1 . . Core 7 | . . . . . . . 1 . . . . . . . 3 2 1 Reactor 6 | . . . . . . . . . . . . . . . 2 1 3 Propulsion 99 | 2 . 2 8 2 . . 15 4 3 5 . 5 . 3 16 27 7 Treads 51 | . . 2 8 2 . . 11 2 . 4 . 5 . 3 4 9 1 Leg 29 | 2 . . . . . . . . . . . . . . 5 18 4 Wheel 19 | . . . . . . . 4 2 3 1 . . . . 7 . 2 Hover . | . . . . . . . . . . . . . . . . . . Flight . | . . . . . . . . . . . . . . . . . . Utility 158 | 2 2 . 6 2 1 . 15 3 25 13 3 9 4 11 29 12 21 Device 95 | 1 1 . . 1 . . 9 1 21 8 3 4 3 5 17 7 14 Storage 8 | 1 1 . 1 . 1 . . 1 . . . . 1 . 2 . . Processor 8 | . . . 1 . . . 1 . 1 1 . . . . 2 1 1 Hackware 18 | . . . . . . . . . 2 . . 3 . 6 4 1 2 Protection 29 | . . . 4 1 . . 5 1 1 4 . 2 . . 4 3 4 Artifact . | . . . . . . . . . . . . . . . . . . Weapon 181 | 2 4 6 4 6 1 . 42 10 22 4 2 13 . 11 27 8 19 Energy Gun 22 | . . 1 . . . . 7 . 4 . . 3 . . 1 3 3 Energy Cannon 4 | . . . . . . . . . . . 1 1 . . . . 2 Ballistic Gun 101 | 2 2 3 3 5 1 . 28 5 13 3 . 5 . 8 16 2 5 Ballistic Cannon 8 | . . . . . . . 1 . . . . . . . 3 2 2 Launcher 14 | . . . . 1 . . 2 2 3 1 1 1 . . . . 3 Special Weapon 28 | . 2 2 1 . . . 4 . 2 . . 3 . 3 7 1 3 Impact Weapon . | . . . . . . . . . . . . . . . . . . Slashing Weapon 4 | . . . . . . . . 3 . . . . . . . . 1 Piercing Weapon . | . . . . . . . . . . . . . . . . . . Special Melee Weapon . | . . . . . . . . . . . . . . . . . . Unidentified Prototypes 10 | . . . . . . . 4 . . . . . . . 4 . 2 Corrupted Parts 13 | . . . 1 . . . 2 . . . . 1 . . . 6 3 System Corruption 53 | . . . 1 . . . 4 . . . . 1 . . . 29 18 Parts Lost 95 | . . . 4 5 . . 5 2 2 8 . 3 . 5 23 15 23 Power 13 | . . . . 1 . . 2 . . 1 . . . 1 3 2 3 Propulsion 32 | . . . 1 2 . . 1 1 . 3 . 1 . 2 10 4 7 Utility 27 | . . . 2 2 . . 2 1 2 2 . . . 2 6 3 5 Weapon 23 | . . . 1 . . . . . . 2 . 2 . . 4 6 8 Highest Loss Streak 16 | . . . 3 2 . . 1 2 1 3 . 2 . 3 5 5 16 To Critical Strikes 6 | . . . . . . . . . . . . 1 . . . 3 2 Average Slot Usage (%) 94 | . 100 100 99 94 100 100 99 99 99 89 92 89 91 89 89 94 88 Engine 6 | . 14 14 11 7 11 11 3 9 7 6 7 7 12 11 2 . . Core 1 | . . . . . . . 5 . . . . . . . 4 5 1 Treads 17 | . . 1 32 32 33 33 20 18 15 12 15 25 26 23 13 . 18 Leg 4 | . 28 26 . . . . . . . . . . . . 1 26 2 Wheel 4 | . . . . . . . 6 8 15 10 7 2 . . 6 . 5 Device 10 | . 14 14 3 1 11 11 13 13 16 9 12 4 12 9 6 9 9 Storage 7 | . 14 14 11 11 11 11 9 9 7 7 7 7 6 6 5 5 4 Processor 6 | . . . 11 5 . . 2 4 6 9 9 7 6 6 4 15 14 Hackware 2 | . . . . . . . . . . . . 2 . 5 16 4 . Protection 6 | . . . 7 14 11 11 10 9 5 7 7 6 6 4 4 1 4 Ballistic Gun 19 | . 27 26 18 21 22 22 26 26 21 22 15 19 20 18 14 9 9 Naked Turns . | . . . . . . . . . . . . . . . . . . Heaviest Build 162 | 13 28 29 34 39 53 53 75 116 117 126 121 127 141 141 141 153 162 Greatest Support 150 | 20 20 40 65 65 63 63 63 60 24 40 28 90 80 80 130 150 150 Greatest Overweight (x) 14 | 1 1 1 . . . . 7 9 4 10 4 4 1 3 14 2 10 Average Overweight (x) 2 | . . . . . . . 4 6 4 3 4 2 1 1 4 1 2 Largest Inventory Capacity 25 | 8 15 15 15 15 20 20 20 25 25 25 25 25 25 25 25 25 25 Average Capacity 21 | 7 13 15 15 15 15 20 20 21 25 25 25 25 25 25 25 25 24 Most Carried 25 | 8 14 15 15 15 18 20 20 25 25 25 25 25 25 25 25 25 25 Average Carried 21 | 4 10 14 14 14 15 18 19 20 24 23 24 24 23 24 24 23 23 Final Capacity 25 | 8 15 15 15 15 20 20 20 25 25 25 25 25 25 25 25 25 5 Final Carried 25 | 8 14 15 15 14 18 20 20 25 25 25 25 25 25 25 24 25 4 Class Distribution -------------------- 16% | Bothacker-Tank 14% | Scavenger-Tank 12% | Bothacker-Mutant 11% | Mutant 10% | Scavenger-Mutant 6% | Bothacker-Skirmisher 5% | Botlord-Mutant 5% | Scavenger-Gunner 3% | Tank 3% | Bothacker-Gunner Dominant Class ---------------- Mutant | -10/Materials Mutant | -10/Mines Mutant | -9/Materials Scavenger-Mutant | -9/Mines Scavenger-Mutant | -9/Exiles Scavenger-Mutant | -8/Mines Scavenger-Tank | -8/Materials Tank | -8/Garrison Bothacker-Tank | -7/Factory Bothacker-Tank | -7/Garrison Bothacker-Skirmisher | -7/Factory Bothacker-Mutant | -7/Garrison Bothacker-Mutant | -6/Factory Botlord-Mutant | -6/Garrison Botlord-Skirmisher | -5/Factory Scavenger-Gunner | -5/Extension Bothacker-Gunner | -4/Factory Resources | -11 -10 -10 -9 -9 -9 -8 -8 -8 -7 -7 -7 -7 -6 -6 -5 -5 -4 ----------- Run | Scr Mat Min Mat Min Exi Min Mat Gar Fac Gar Fac Gar Fac Gar Fac Ext Fac Matter Collected 13666 | 249 152 163 424 248 29 55 2125 797 969 1045 . 801 . 858 2997 1697 1057 Remotely 836 | . . . . . . . . . . . . . . 258 578 . . Salvage Created 16579 | 73 240 388 1558 217 . . 2740 853 1146 1012 . 720 85 557 3015 1798 2177 Parts 895 | 9 25 13 96 19 . . 169 52 72 64 . 36 2 26 153 67 92 Haulers Intercepted 13 | . 1 . 2 . . . 6 . 2 . . . . . 1 . 1 Recyclers Shooed 20 | 1 1 . 4 1 . . 5 . . . . . . . 5 . 3 Parts Field Recycled . | . . . . . . . . . . . . . . . . . . Retrieved Matter . | . . . . . . . . . . . . . . . . . . Parts Self-Destructed . | . . . . . . . . . . . . . . . . . . Prevented . | . . . . . . . . . . . . . . . . . . Kills | -11 -10 -10 -9 -9 -9 -8 -8 -8 -7 -7 -7 -7 -6 -6 -5 -5 -4 ------- Run | Scr Mat Min Mat Min Exi Min Mat Gar Fac Gar Fac Gar Fac Gar Fac Ext Fac Combat Hostiles Destroyed 283 | . 9 6 26 20 . . 42 24 13 25 . 15 2 14 40 21 26 Guns 218 | . 9 6 26 14 . . 35 11 12 20 . 12 2 14 31 13 13 Cannons 15 | . . . . . . . . . . . . . . . 3 8 4 AOE 47 | . . . . 6 . . 7 13 1 5 . 3 . . 5 . 7 Classes Destroyed 23 | 2 3 . 4 2 . . 6 2 . 2 . . . . 1 1 . Worker 22 | . . . 1 . . . 2 . 3 . . . . . 15 . 1 Builder 18 | . . . 2 . . . 4 . 3 . . . . . 3 3 3 Tunneler 3 | 1 . . . . . . 2 . . . . . . . . . . Hauler 13 | . 1 . 2 . . . 6 . 2 . . . . . 1 . 1 Recycler 20 | 1 . 1 2 . . . 6 . 2 . . . . . 4 1 3 Mechanic 1 | . . . . . . . 1 . . . . . . . . . . Operator 6 | . . . . . . . 2 . 3 . . . . . . 1 . Watcher 13 | . . . 3 . . . 4 . 1 . . . . . 2 1 2 Swarmer 65 | . 6 . 3 10 . . 11 11 . 10 . 3 . 2 5 . 4 Cutter 4 | . . . . . . . . 2 . . . . . 2 . . . Saboteur 1 | . . . . . . . . . . . . . . . 1 . . Grunt 98 | . 3 6 17 . . . 18 8 6 4 . 6 2 3 12 7 6 Brawler 9 | . . . . . . . 1 . . 1 . 1 . 1 4 1 . Duelist 8 | . . . . . . . . . . 2 . . . 1 3 2 . Protector 1 | . . . . . . . . . . 1 . . . . . . . Sentry 44 | . . . 6 . . . 9 1 1 5 . 6 . 6 3 7 . Demolisher 1 | . . . . 1 . . . . . . . . . . . . . Specialist 7 | . . . . . . . . 2 . 1 . . . . . . 4 Hunter 16 | . . . . . . . 1 . 3 . . . . . 3 3 6 Programmer 20 | . . . . . . . 1 . 3 1 . . . . 9 . 6 Heavy 1 | . . . . . . . 1 . . . . . . . . . . Behemoth 1 | . . . . . . . . . . . . . . . . 1 . Assembled 9 | . . . . 9 . . . . . . . . . . . . . Thug 3 | . . 1 . . . . . . . . . . . . . 2 . Savage 1 | . . . . . . . . . . . . . . . . 1 . Butcher 1 | . . . . . . . . . . . . . . . . 1 . Best Kill Streak 14 | 2 3 5 10 6 . . 10 14 3 8 . 3 2 3 12 4 9 Combat Bots Only 14 | . 3 4 8 6 . . 7 14 2 8 . 3 2 3 6 4 7 Max Kills in Single Turn 4 | 1 1 1 2 3 . . 4 2 2 2 . 2 1 2 4 2 3 Gunslinging 1 | . . . 1 1 . . . . . 1 . 1 . 1 . . . Exploded 4 | . . . . 3 . . 3 2 1 2 . 2 . . 4 . 2 Melee . | . . . . . . . . . . . . . . . . . . Uniques/NPCs Destroyed . | . . . . . . . . . . . . . . . . . . Combat | -11 -10 -10 -9 -9 -9 -8 -8 -8 -7 -7 -7 -7 -6 -6 -5 -5 -4 -------- Run | Scr Mat Min Mat Min Exi Min Mat Gar Fac Gar Fac Gar Fac Gar Fac Ext Fac Damage Taken 23373 | . 276 145 1342 673 . . 1598 1019 766 1932 41 1486 303 1565 3590 2623 6014 Core 2816 | . 50 . 133 100 . . 191 87 51 192 . 122 68 154 272 204 1192 Absorbed by Shields 4092 | . . . . . . . 353 220 154 228 . 365 161 600 278 1079 654 Reduced by Siege Mode 38 | . . . . . . . . . . . . . . . 38 . . Regen/Repaired (Parts) 35 | . . . . . . . 11 . 24 . . . . . . . . Core Remaining (%) 63 | 100 . 80 . . . 41 . 49 . . . 47 . 73 . 52 . Volleys Fired 1105 | 5 40 41 105 42 . 2 183 54 61 76 1 68 5 67 157 86 112 Largest 3 | 2 2 2 2 2 . 2 3 3 3 3 1 3 3 3 3 3 3 Hottest 203 | 40 100 100 100 43 . 40 150 74 100 74 33 115 84 84 113 179 203 Shots Fired 2628 | 9 78 71 207 80 1 5 518 140 168 213 1 121 15 137 409 237 218 Gun 2382 | 9 76 60 206 76 1 5 507 131 162 208 . 99 15 122 355 183 167 Cannon 133 | . . . . . . . . . . . . 7 . . 33 51 42 Launcher 36 | . . . . 4 . . 6 9 2 5 1 2 . . . . 7 Special 77 | . 2 11 1 . . . 5 . 4 . . 13 . 15 21 3 2 Kinetic 2375 | 9 76 60 164 76 1 5 497 131 154 208 . 98 15 122 383 216 160 Thermal 22 | . 2 11 1 . . . 7 . . . . 1 . . . . . Explosive 29 | . . . . 4 . . 6 9 2 5 1 2 . . . . . Electromagnetic 144 | . . . 42 . . . 8 . 8 . . 7 . . 5 18 56 Robot Hit Streak 39 | 5 11 8 39 7 . 3 14 35 20 14 . 35 6 16 13 11 14 Robot Miss Streak 12 | 1 2 4 3 3 . 1 6 5 3 4 . 3 3 12 8 4 6 Penetration Max 2 | . . . . . . . . 1 1 1 . . 1 . 2 1 1 Secondary Targets 40 | . 2 2 3 2 . . 3 4 2 8 . 4 1 2 3 2 2 Max Gunslinging Chain 2 | . 1 1 1 1 . . 1 1 1 2 . 1 1 1 1 1 1 Shots Hit Robots 1685 | 8 52 40 156 51 . 3 302 108 110 115 . 88 14 110 244 135 149 Core Hits 883 | 4 21 21 68 30 . 1 136 56 48 60 . 64 14 96 125 59 80 Critical Kills 15 | . . . . . . . . . 1 1 . . . . 6 7 . Critical Parts Destroyed 18 | . . 1 1 . . . . . 1 2 . . . . 6 6 1 Critical Strikes 51 | . . 1 3 . . . . 4 2 3 . . . . 15 21 2 Destroy 35 | . . 1 1 . . . . . 2 3 . . . . 12 15 1 Blast 8 | . . . . . . . . . . . . . . . 2 6 . Corrupt 3 | . . . 2 . . . . . . . . . . . 1 . . Sever 5 | . . . . . . . . 4 . . . . . . . . 1 Melee Attacks 33 | . . . . . . . . 21 . . . . . . . . 12 Impact . | . . . . . . . . . . . . . . . . . . Slashing 33 | . . . . . . . . 21 . . . . . . . . 12 Piercing . | . . . . . . . . . . . . . . . . . . Sneak Attacks . | . . . . . . . . . . . . . . . . . . Combat Hostiles . | . . . . . . . . . . . . . . . . . . Follow-up Attacks . | . . . . . . . . . . . . . . . . . . Damage Inflicted 35972 | 71 398 327 1658 750 . 24 5006 2623 1854 2420 . 1705 329 1797 7609 4466 4935 Guns 27400 | 71 398 327 1654 463 . 24 4191 958 1765 2026 . 1237 329 1797 6089 3463 2608 Cannons 2487 | . . . . . . . . . . . . 168 . . 618 973 728 Explosions 5071 | . . . . 287 . . 809 1150 89 394 . 300 . . 902 30 1110 Melee 988 | . . . . . . . . 515 . . . . . . . . 473 Ramming 26 | . . . 4 . . . 6 . . . . . . . . . 16 Kinetic 27838 | 71 398 327 1231 463 . 24 4034 958 1658 2026 . 1237 329 1797 6604 4060 2621 Thermal 924 | . . . . . . . 39 . 89 . . . . . 326 30 440 Explosive 3477 | . . . . 287 . . 770 1150 . 394 . 300 . . 576 . . Electromagnetic 2719 | . . . 423 . . . 157 . 107 . . 168 . . 103 376 1385 Impact . | . . . . . . . . . . . . . . . . . . Slashing 988 | . . . . . . . . 515 . . . . . . . . 473 Piercing . | . . . . . . . . . . . . . . . . . . Highest Corruption 38 | . . . 1 3 3 3 5 5 1 . . 1 . . 8 38 31 Average Corruption 5 | . . . 1 2 3 3 4 5 1 . . 1 . . 5 11 12 Corruption Purged 1 | . . . . . . . . . 1 . . . . . . . . Corruption Blocked . | . . . . . . . . . . . . . . . . . . Effects 297 | . . . 2 14 19 6 9 42 16 . . 15 . . 33 87 54 Message Errors 79 | . . . . 4 2 3 3 12 5 . . 2 . . 7 32 9 Matter Fused 60 | . . . 1 3 5 . 3 9 3 . . 5 . . 4 17 10 Heat Flow Errors 31 | . . . . 3 5 . 2 3 1 . . 1 . . 3 10 3 Energy Discharges 30 | . . . . 3 2 . . 5 1 . . 4 . . 3 8 4 Parts Rejected 6 | . . . . . . . . . 2 . . . . . . 2 2 Data Loss (minor) 40 | . . . . 1 3 2 . 7 3 . . 2 . . 5 7 10 Data Loss (major) 10 | . . . . . 1 . 1 2 . . . 1 . . 1 3 1 Misfires 18 | . . . . . 1 1 . 3 1 . . . . . 5 4 3 Alerts 5 | . . . . . . . . . . . . . . . . 1 4 Weapon Failures 18 | . . . 1 . . . . 1 . . . . . . 5 3 8 Overload Shots . | . . . . . . . . . . . . . . . . . . Overflow Damage 255 | . . . . . . . 47 70 . . . 1 . . 104 . 33 Projectiles . | . . . . . . . . . . . . . . . . . . Explosions 250 | . . . . . . . 47 70 . . . 1 . . 104 . 28 Melee 5 | . . . . . . . . . . . . . . . . . 5 Knockbacks 12 | . . . . . . . . . . . . . . . 4 6 2 Impact . | . . . . . . . . . . . . . . . . . . Kinetic 11 | . . . . . . . . . . . . . . . 4 5 2 Secondary 1 | . . . . . . . . . . . . . . . . 1 . Self-Inflicted Damage 379 | . . . . . . . 90 2 32 39 41 70 . . 52 . 53 Shots 14 | . . . . . . . 3 1 1 2 1 2 . . 1 . 3 Rammed 3 | . . . 2 . . . 1 . . . . . . . . . . Targets Rammed 4 | . . . 2 . . . 1 . . . . . . . . . 1 Kicked 1 | . . . . . . . . . . . . . . . . . 1 Crushed . | . . . . . . . . . . . . . . . . . . Highest Temperature 492 | . 20 62 66 221 258 3 282 331 280 250 . 252 208 198 402 492 397 Average Temperature 80 | . 8 16 12 67 90 3 56 102 41 61 . 100 119 49 79 151 135 Received Heat Transfer 4154 | . 102 78 708 9 . . 696 371 108 252 . 483 54 332 504 294 163 Effects 13 | . . . . . . . . 1 . . . 1 . . 1 7 3 Shutdowns 3 | . . . . . . . . . . . . . . . . 3 . Energy Bleed 5 | . . . . . . . . . . . . 1 . . . 3 1 Interference 2 | . . . . . . . . 1 . . . . . . . . 1 Matter Decay 1 | . . . . . . . . . . . . . . . 1 . . Short Circuit 2 | . . . . . . . . . . . . . . . . 1 1 Siege Activations 2 | . . . . . . . . . . . . . . . 2 . . Total Turns 28 | . . . . . . . . . . . . . . . 28 . . Longest Duration 19 | . . . . . . . . . . . . . . . 19 . . Robots Corrupted 3 | . . . . . . . . . . . . . . . 1 . 2 Combat Hostiles 3 | . . . . . . . . . . . . . . . 1 . 2 Parts Fried 11 | . . . 1 . . . . . . . . . . . 1 1 8 Impact Corruptions . | . . . . . . . . . . . . . . . . . . Robots Melted . | . . . . . . . . . . . . . . . . . . Combat Hostiles . | . . . . . . . . . . . . . . . . . . Parts Melted 4 | . . . . . . . . . . . . 2 . . . 2 . Heat Transferred 800 | . . . . . . . 50 . 100 . . . . . 200 50 400 Parts Sabotaged 2 | . . . . . . . . . . . . . . . 2 . . Parts Stolen . | . . . . . . . . . . . . . . . . . . Parts Stripped . | . . . . . . . . . . . . . . . . . . Power Chain Reactions 8 | . . . . . . . 1 . 2 . . . . . . 1 4 Missiles Intercepted . | . . . . . . . . . . . . . . . . . . Alert | -11 -10 -10 -9 -9 -9 -8 -8 -8 -7 -7 -7 -7 -6 -6 -5 -5 -4 ------- Run | Scr Mat Min Mat Min Exi Min Mat Gar Fac Gar Fac Gar Fac Gar Fac Ext Fac Peak Influence 1241 | 10 200 131 589 378 . . 565 919 545 1241 651 829 534 813 1130 1201 579 Initial 651 | . 6 78 50 77 . . . 203 482 378 651 330 434 373 426 531 326 Average 514 | 7 65 72 282 203 . . 277 715 437 977 615 639 466 595 635 816 329 Maximum Alert Level 4 | . 1 . 2 1 . . 2 3 2 4 2 3 2 3 4 4 2 Low Security (%) 16 | 100 97 100 36 60 . 100 25 . . . . . . . . . 2 Level 1 20 | . 2 . 44 39 . . 52 12 27 2 . 7 . 7 2 . 77 Level 2 35 | . . . 18 . . . 21 32 72 16 100 44 100 66 62 24 20 Level 3 23 | . . . . . . . . 55 . 36 . 48 . 26 31 65 . Level 4 4 | . . . . . . . . . . 44 . . . . 3 10 . Level 5 . | . . . . . . . . . . . . . . . . . . High Security . | . . . . . . . . . . . . . . . . . . Max Security . | . . . . . . . . . . . . . . . . . . Squads Dispatched 69 | . 4 1 5 . . . 9 . 9 . 1 . 3 . 17 10 10 Investigation 17 | . 1 1 4 . . . 4 . 3 . . . 1 . 1 1 1 Extermination 10 | . . . . . . . . . 3 . . . . . 5 . 2 Reinforcement 27 | . 3 . 1 . . . 4 . 3 . . . . . 5 4 7 Assault 10 | . . . . . . . . . . . 1 . . . 4 5 . Garrison 5 | . . . . . . . 1 . . . . . 2 . 2 . . Intercept . | . . . . . . . . . . . . . . . . . . Searches Triggered . | . . . . . . . . . . . . . . . . . . Construction Impeded 11 | . . . . . . . 2 . . . . . . . 3 3 3 Haulers Reinforced 3 | . . . . . . . . . . . . . . . 2 . 1 Active Scanning Responses . | . . . . . . . . . . . . . . . . . . Cargo Convoy Interrupts 1 | . . . . . . . . . . . . . . . . . 1 Stealth | -11 -10 -10 -9 -9 -9 -8 -8 -8 -7 -7 -7 -7 -6 -6 -5 -5 -4 --------- Run | Scr Mat Min Mat Min Exi Min Mat Gar Fac Gar Fac Gar Fac Gar Fac Ext Fac Distress Signals 16 | . 4 . 3 1 . . 1 . . . . . . . 5 2 . Communications Jammed 2 | . . . . . . . . . 1 . . . . . . . 1 Distress Signals 2 | . . . . . . . . . 1 . . . . . . . 1 Times Spotted 488 | . 22 7 42 19 . . 63 24 23 30 1 27 6 34 71 62 57 Peak Tracking Total 16 | . 5 3 6 5 . . 7 10 3 8 2 6 4 11 6 6 16 Tactical Retreats 16 | . . . 1 . . . 2 . . 4 . 1 . . 5 3 . Traps | -11 -10 -10 -9 -9 -9 -8 -8 -8 -7 -7 -7 -7 -6 -6 -5 -5 -4 ------- Run | Scr Mat Min Mat Min Exi Min Mat Gar Fac Gar Fac Gar Fac Gar Fac Ext Fac Traps Triggered 39 | . . . 1 . . . . 9 3 7 1 8 . 5 2 1 2 Indirectly . | . . . . . . . . . . . . . . . . . . Trap Hack Attempts . | . . . . . . . . . . . . . . . . . . Triggered . | . . . . . . . . . . . . . . . . . . Disarmed . | . . . . . . . . . . . . . . . . . . Reprogrammed . | . . . . . . . . . . . . . . . . . . Reused . | . . . . . . . . . . . . . . . . . . Traps Extracted . | . . . . . . . . . . . . . . . . . . Installed . | . . . . . . . . . . . . . . . . . . Triggered . | . . . . . . . . . . . . . . . . . . Most Traps Carried 3 | . . 3 3 . . . . . . . . . . . . . . Machines | -11 -10 -10 -9 -9 -9 -8 -8 -8 -7 -7 -7 -7 -6 -6 -5 -5 -4 ---------- Run | Scr Mat Min Mat Min Exi Min Mat Gar Fac Gar Fac Gar Fac Gar Fac Ext Fac Machines Disabled 41 | . . 2 . . . . 3 4 5 6 1 3 . 4 6 3 4 Max in Single Turn 4 | . . 1 . . . . 1 1 1 2 1 1 . 1 4 1 1 Garrison Relay 15 | . . . . . . . . 4 . 4 . 3 . 4 . . . Phase Generator 1 | . . . . . . . . . . 1 . . . . . . . Machines Sabotaged . | . . . . . . . . . . . . . . . . . . Garrisons Compromised . | . . . . . . . . . . . . . . . . . . Overloaded Fab Kills . | . . . . . . . . . . . . . . . . . . Hacking | -11 -10 -10 -9 -9 -9 -8 -8 -8 -7 -7 -7 -7 -6 -6 -5 -5 -4 --------- Run | Scr Mat Min Mat Min Exi Min Mat Gar Fac Gar Fac Gar Fac Gar Fac Ext Fac Machines Accessed 56 | . 4 1 11 . 1 . 13 . 8 . 2 . 2 . 1 10 3 Terminals 34 | . 3 . 6 . . . 9 . 3 . 1 . 1 . . 10 1 Fabricators 2 | . . . . . . . . . 1 . . . . . . . 1 Repair Stations 5 | . . . 2 . . . 1 . 1 . . . . . . . 1 Recycling Units 4 | . 1 . 1 . . . 1 . . . . . . . 1 . . Scanalyzers 5 | . . . 2 . . . 1 . 2 . . . . . . . . Garrison Access 4 | . . . . . . . 1 . 1 . 1 . 1 . . . . Total Hacks 152 | . 10 1 29 . 4 . 49 . 22 . 5 . 3 . 1 21 7 Successful 89 | . 7 1 20 . 4 . 29 . 11 . 2 . 3 . . 10 2 Failed 62 | . 3 . 8 . . . 20 . 11 . 3 . . . 1 11 5 Catastrophic 9 | . 1 . 2 . . . 2 . 1 . . . . . . 3 . Database Lockouts 1 | . . . 1 . . . . . . . . . . . . . . Manual 49 | . 2 . 11 . . . 14 . 5 . 4 . 1 . . 8 4 Terminals 88 | . 8 . 14 . . . 34 . 5 . 3 . 1 . . 21 2 Fabricators 7 | . . . . . . . . . 4 . . . . . . . 3 Repair Stations 14 | . . . 7 . . . 2 . 3 . . . . . . . 2 Recycling Units 7 | . 2 . 2 . . . 2 . . . . . . . 1 . . Scanalyzers 20 | . . . 6 . . . 7 . 7 . . . . . . . . Garrison Access 11 | . . . . . . . 4 . 3 . 2 . 2 . . . . Terminal Hacks 38 | . 5 1 6 . 4 . 11 . 1 . 1 . 1 . . 8 . Record 4 | . . . . . 4 . . . . . . . . . . . . Part Schematic 2 | . . . 1 . . . 1 . . . . . . . . . . Robot Analysis 1 | . 1 . . . . . . . . . . . . . . . . Prototype ID Bank 5 | . 2 . . . . . 3 . . . . . . . . . . Open Door 8 | . . 1 . . . . . . . . . . . . . 7 . Open DSF 2 | . . . . . . . . . 1 . . . 1 . . . . Branch Access Points 2 | . 1 . . . . . 1 . . . . . . . . . . Terminal Index 1 | . . . 1 . . . . . . . . . . . . . . Unreport Threat 6 | . . . 2 . . . 4 . . . . . . . . . . Locate Traps 1 | . . . . . . . 1 . . . . . . . . . . Surveillance Status 1 | . . . 1 . . . . . . . . . . . . . . Hauler Manifests 2 | . . . 1 . . . 1 . . . . . . . . . . Zone Layout 3 | . 1 . . . . . . . . . 1 . . . . 1 . Fabricator Hacks 2 | . . . . . . . . . 1 . . . . . . . 1 Build 2 | . . . . . . . . . 1 . . . . . . . 1 Repair Station Hacks 6 | . . . 2 . . . 2 . 2 . . . . . . . . Scan Component 4 | . . . 2 . . . 1 . 1 . . . . . . . . Repair 2 | . . . . . . . 1 . 1 . . . . . . . . Recycling Unit Hacks 2 | . 1 . . . . . 1 . . . . . . . . . . Retrieve Components 2 | . 1 . . . . . 1 . . . . . . . . . . Scanalyzer 18 | . . . 6 . . . 6 . 6 . . . . . . . . Insert Component 9 | . . . 3 . . . 3 . 3 . . . . . . . . Analyze 9 | . . . 3 . . . 3 . 3 . . . . . . . . Garrison Access Hacks 4 | . . . . . . . 1 . 1 . 1 . 1 . . . . Unlock Access 4 | . . . . . . . 1 . 1 . 1 . 1 . . . . Unauthorized Hacks 19 | . 1 . 6 . . . 8 . . . . . 1 . . 2 1 Terminals 13 | . . . 5 . . . 6 . . . . . . . . 2 . Track 6 | . . . 1 . . . 3 . . . . . . . . 2 . Botnet 3 | . . . 2 . . . 1 . . . . . . . . . . Disrupt 1 | . . . . . . . 1 . . . . . . . . . . Operators 1 | . . . 1 . . . . . . . . . . . . . . Search 2 | . . . 1 . . . 1 . . . . . . . . . . Fabricators 1 | . . . . . . . . . . . . . . . . . 1 Haulers 1 | . . . . . . . . . . . . . . . . . 1 Repair Stations . | . . . . . . . . . . . . . . . . . . Recycling Units 3 | . 1 . 1 . . . 1 . . . . . . . . . . Tunnel 3 | . 1 . 1 . . . 1 . . . . . . . . . . Scanalyzers . | . . . . . . . . . . . . . . . . . . Garrison Access 2 | . . . . . . . 1 . . . . . 1 . . . . Restock 1 | . . . . . . . 1 . . . . . . . . . . Eject 1 | . . . . . . . . . . . . . 1 . . . . Data Cores Recovered 1 | . . . . . . . 1 . . . . . . . . . . Used . | . . . . . . . . . . . . . . . . . . Hacking Detections 43 | . 3 . 10 . . . 12 . 5 . 2 . 1 . 1 7 2 Full Trace Events 6 | . . . 1 . . . 2 . 2 . . . . . . 1 . Feedback Events . | . . . . . . . . . . . . . . . . . . Feedback Blocked . | . . . . . . . . . . . . . . . . . . Robot Schematics Acquired . | . . . . . . . . . . . . . . . . . . Robots Built . | . . . . . . . . . . . . . . . . . . Authchips . | . . . . . . . . . . . . . . . . . . Time . | . . . . . . . . . . . . . . . . . . Total Robot Build Rating . | . . . . . . . . . . . . . . . . . . Part Schematics Acquired 11 | . . . 4 . . . 4 . 3 . . . . . . . . Parts Built 2 | . . . . . . . . . 2 . . . . . . . . Authchips . | . . . . . . . . . . . . . . . . . . Time 223 | . . . . . . . . . 95 . . . . . . . 128 Total Part Build Rating 10 | . . . . . . . . . 10 . . . . . . . . Parts Repaired 2 | . . . . . . . 1 . 1 . . . . . . . . Time 190 | . . . . . . . 136 . 54 . . . . . . . . Parts Recycled . | . . . . . . . . . . . . . . . . . . Recycled Matter . | . . . . . . . . . . . . . . . . . . Retrieved Matter . | . . . . . . . . . . . . . . . . . . Retrieved Components 16 | . 9 . . . . . 7 . . . . . . . . . . Parts Scanalyzed 9 | . . . 3 . . . 3 . 3 . . . . . . . . Part Schematics Acquired 9 | . . . 3 . . . 3 . 3 . . . . . . . . Parts Damaged 1 | . . . 1 . . . . . . . . . . . . . . Bothacking | -11 -10 -10 -9 -9 -9 -8 -8 -8 -7 -7 -7 -7 -6 -6 -5 -5 -4 ------------ Run | Scr Mat Min Mat Min Exi Min Mat Gar Fac Gar Fac Gar Fac Gar Fac Ext Fac Used RIF Installer 4 | . . . . . . . . 1 . 1 . 1 . 1 . . . Coupler Efficiency 1 | . . . . . . . . . . 1 . . . . . . . Program Shield 1 | . . . . . . . . . . . . 1 . . . . . Autooverride 1 | . . . . . . . . . . . . . . 1 . . . Robots Hacked 36 | . . . . . . . . . 4 . . 7 . 11 10 2 2 Non-combat 4 | . . . . . . . . . 1 . . . . . 1 1 1 Combat 32 | . . . . . . . . . 3 . . 7 . 11 9 1 1 Autooverrided 3 | . . . . . . . . . . . . . . 1 1 1 . Robot Hacks Applied 37 | . . . . . . . . . 4 . . 7 . 11 10 3 2 parse_system 2 | . . . . . . . . . . . . . . 1 1 . . find_chute 2 | . . . . . . . . . 1 . . . . . 1 . . drop_inventory 1 | . . . . . . . . . . . . . . . . . 1 purge_threat 3 | . . . . . . . . . . . . . . . . 3 . amplify_resonance 6 | . . . . . . . . . . . . 1 . 2 3 . . overwrite_iff 12 | . . . . . . . . . 3 . . 1 . 4 3 . 1 formatsys_high 11 | . . . . . . . . . . . . 5 . 4 2 . . Relay Couplers Released 69 | . . . . . . . 2 15 . 17 . 14 4 17 . . . Ejected 4 | . . . . . . . . . . . . . 4 . . . . Machine Destruction 63 | . . . . . . . . 15 . 17 . 14 . 17 . . . Programmers 2 | . . . . . . . 2 . . . . . . . . . . Attached 17 | . . . . . . . . . 1 . . 3 . 6 4 1 2 Fabnet Peak Effective % . | . . . . . . . . . . . . . . . . . . Robots Rewired 25 | . . . . . . . . . . 3 . . . . . 22 . Allies Hacked 1 | . . . . . . . . . . . . . . . . . 1 Hacks Repelled . | . . . . . . . . . . . . . . . . . . Allies | -11 -10 -10 -9 -9 -9 -8 -8 -8 -7 -7 -7 -7 -6 -6 -5 -5 -4 -------- Run | Scr Mat Min Mat Min Exi Min Mat Gar Fac Gar Fac Gar Fac Gar Fac Ext Fac Total Allies 63 | . . . . 2 . . . . 3 3 . 6 . 9 6 33 1 Largest Group 8 | . . . . 2 . . . . 1 3 1 3 . 2 2 8 5 Highest-Rated Group 360 | . . . . 50 . . . . 16 129 43 61 . 58 82 360 151 Highest-Rated Ally 159 | . . . . 31 . . . . 16 43 43 29 . 29 42 159 47 Total Orders 8 | . . . . . . . . . . 7 1 . . . . . . STAY 4 | . . . . . . . . . . 3 1 . . . . . . FOLLOW 4 | . . . . . . . . . . 4 . . . . . . . Ally Attacks 397 | . . . . 7 . . . . 5 24 . 40 . 38 24 237 22 Total Damage 8738 | . . . . 43 . . . . 58 810 . 603 . 484 731 5479 530 Kills 55 | . . . . 1 . . . . . 2 . 4 . 5 6 35 2 Allies Corrupted . | . . . . . . . . . . . . . . . . . . Allies Melted . | . . . . . . . . . . . . . . . . . . Intel | -11 -10 -10 -9 -9 -9 -8 -8 -8 -7 -7 -7 -7 -6 -6 -5 -5 -4 ------- Run | Scr Mat Min Mat Min Exi Min Mat Gar Fac Gar Fac Gar Fac Gar Fac Ext Fac Robot Analysis Total 1 | . 1 . . . . . . . . . . . . . . . . Derelict Logs Recovered 5 | . . 2 . 3 . . . . . . . . . . . . . Drone Launches . | . . . . . . . . . . . . . . . . . . Drone Recoveries . | . . . . . . . . . . . . . . . . . . Exploration | -11 -10 -10 -9 -9 -9 -8 -8 -8 -7 -7 -7 -7 -6 -6 -5 -5 -4 ------------- Run | Scr Mat Min Mat Min Exi Min Mat Gar Fac Gar Fac Gar Fac Gar Fac Ext Fac Turns Passed 24112 | 115 674 766 1427 916 872 350 3080 1862 1834 1755 496 1871 125 2200 2052 2407 1310 Spaces Moved 10574 | 68 317 310 681 501 541 215 1300 792 1004 806 261 763 42 766 801 944 462 Core 8 | 6 . . . . . . . . . . . . . . . . 2 Treads 4107 | . . 14 681 501 541 215 373 22 . 4 . 496 42 766 253 19 180 Legs 1661 | 62 317 296 . . . . . . . . . . . . 35 925 26 Wheels 4798 | . . . . . . . 927 770 1004 802 261 267 . . 513 . 254 Hover . | . . . . . . . . . . . . . . . . . . Flight . | . . . . . . . . . . . . . . . . . . Fastest Speed 50 | 50 120 160 155 155 160 160 150 160 150 140 160 160 240 240 135 160 50 Average Speed 180 | 116 167 188 156 157 160 160 180 193 150 156 160 212 240 256 181 190 183 Slowest Speed 400 | 120 190 190 160 160 160 160 245 250 150 330 160 320 240 400 290 260 250 Overloaded Moves . | . . . . . . . . . . . . . . . . . . Propulsion Burnouts . | . . . . . . . . . . . . . . . . . . Robots Hopped . | . . . . . . . . . . . . . . . . . . Cave-ins Triggered . | . . . . . . . . . . . . . . . . . . Exploration Rate (%) 55 | 5 53 63 73 98 88 54 96 78 22 91 6 76 1 78 20 77 11 Regions Visited 17 Branch Regions 5 Pre-discovered Areas 5 | . 1 . 1 1 1 . 1 . . . . . . . . . . Known Exits Taken 9 | . 1 . 1 . . 1 1 . 1 . 1 . 1 . 1 1 . Unknown Exits Taken 4 | 1 . 1 . 1 1 . . . . . . . . . . . . Scrap Searched 3 | . . . . 1 . 2 . . . . . . . . . . . Spaces Dug 29 | . 1 1 1 . . . 4 . 7 1 6 . . . . . 8 Terrain Destroyed 473 | . 1 3 1 40 . . 52 11 20 124 6 3 . 1 108 85 18 Melee . | . . . . . . . . . . . . . . . . . . Projectile 178 | . 1 3 1 . . . 5 . . 1 . . . 1 70 85 11 AOE 294 | . . . . 40 . . 47 11 20 123 6 3 . . 37 . 7 Terrain Rammed . | . . . . . . . . . . . . . . . . . . Walls Destroyed . | . . . . . . . . . . . . . . . . . . Machines Disabled . | . . . . . . . . . . . . . . . . . . Actions | -11 -10 -10 -9 -9 -9 -8 -8 -8 -7 -7 -7 -7 -6 -6 -5 -5 -4 --------- Run | Scr Mat Min Mat Min Exi Min Mat Gar Fac Gar Fac Gar Fac Gar Fac Ext Fac Total 13576 | 94 392 413 866 559 550 218 1721 981 1210 1161 338 914 55 904 1114 1364 722 Wait 565 | 4 18 37 24 . . . 62 2 65 159 63 9 . 14 34 27 47 Move 10557 | 67 316 309 680 500 540 214 1299 790 1004 804 261 762 41 765 800 943 462 Hop . | . . . . . . . . . . . . . . . . . . Pick Up 182 | 10 8 8 15 2 5 2 37 13 12 9 3 8 2 10 15 11 12 Fast Attach 140 | 6 1 . 1 3 . . 24 4 9 7 2 8 2 9 32 15 17 Attach 100 | 1 . 3 7 3 . . 14 4 6 7 . 4 2 3 15 16 15 Detach 11 | . . . . . . . 1 1 1 . . 1 . . 3 1 3 Swap 223 | . 5 6 12 5 2 . 37 9 35 10 3 15 1 14 31 19 19 Drop 238 | 1 4 9 20 4 3 . 63 11 17 8 5 12 2 12 27 18 22 Fire 1105 | 5 40 41 105 42 . 2 183 54 61 76 1 68 5 67 157 86 112 Melee 33 | . . . . . . . . 21 . . . . . . . . 12 Ram 1 | . . . . . . . 1 . . . . . . . . . . Kick 1 | . . . . . . . . . . . . . . . . . 1 Crush 2 | . . . 2 . . . . . . . . . . . . . . Escape Stasis 137 | . . . . . . . . 72 . 23 . 27 . 10 . 5 . Rewire 281 | . . . . . . . . . . 58 . . . . . 223 . Trap . | . . . . . . . . . . . . . . . . . . Miscellaneous . | . . . . . . . . . . . . . . . . . . Route ------- -11/Scrapyard -10/Materials (discovered 2 exits: Mat / *Min) -10/Mines -9/Materials (discovered 4 exits: *Mat x3 / *Min) -9/Mines (discovered 4 exits: *Mat x2 / *Exi / [*Zio]) -9/Exiles -8/Mines (discovered 2 exits: *Mat x2) -8/Materials (discovered 4 exits: *Fac x3 / Gar) -8/Garrison (discovered 2 exits: *Fac x2) -7/Factory -7/Garrison (discovered 3 exits: *Fac x3) -7/Factory -7/Garrison (discovered 3 exits: *Fac x3) -6/Factory -6/Garrison (discovered 3 exits: *Fac x3) -5/Factory -5/Extension -4/Factory History --------- Turn | Location | Event 9 | -11/Scrapyard | Discovered new exit (range 15) 116 | -11/Scrapyard | Entered Materials 208 | -10/Materials | Identified exit to Mines 251 | -10/Materials | Discovered new exit (range 14) 310 | -10/Materials | Build established: Mutant 790 | -10/Materials | Entered Mines 872 | -10/Mines | Received a Rocket Launcher from a helpful Derelict 898 | -10/Mines | Learned 4 Materials zone layouts 1030 | -10/Mines | Found a hidden stash of uninstalled traps 1065 | -10/Mines | Excavation squad dispatched 1065 | -10/Mines | A large section of the Mines collapsed 1249 | -10/Mines | A weapon hastily lodged in a ceiling crevice suddenly fell to the ground 1285 | -10/Mines | Found a damaged Exp. Sensor Array with a note attached 1290 | -10/Mines | Found Prototype Device 1315 | -10/Mines | Excavation squad dispatched 1431 | -10/Mines | Discovered new exit (range 12) 1467 | -10/Mines | Met a Derelict shopkeep closing up shop 1556 | -10/Mines | Entered Materials 1556 | -9/Materials | Evolved 2 slots: Propulsion x1, Utility x1 1557 | -9/Materials | Identified exit to Materials 1557 | -9/Materials | Identified exit to Mines 1625 | -9/Materials | Central database locked down 1633 | -9/Materials | Identified Exp. Sensor Array 1957 | -9/Materials | Destroyed 8 combat bots 2012 | -9/Materials | Lost 3 parts (1n1u1w) 2080 | -9/Materials | Build established: Scavenger-Mutant 2219 | -9/Materials | Discovered exit to Materials (range 16) 2739 | -9/Materials | Discovered exit to Materials (range 15) 2843 | -9/Materials | Build established: Mutant 2983 | -9/Materials | Entered Mines 3062 | -9/Mines | Discovered exit to Materials (range 8) 3191 | -9/Mines | Assembled infested the area 3196 | -9/Mines | Assisted by a Guerilla fighting off Assembled 3389 | -9/Mines | A Derelict revealed a hidden shortcut to a safe place 3392 | -9/Mines | Learned Materials trap positions 3597 | -9/Mines | Discovered exit to Materials (range 8) 3618 | -9/Mines | Learned location of Storage (-9) 3639 | -9/Mines | Build established: Scavenger-Mutant 3717 | -9/Mines | Core integrity fell below 50% 3828 | -9/Mines | Deemed a non-threat by the Exiles lab entrance 3828 | -9/Mines | Discovered new exit (range 6) 3899 | -9/Mines | Entered Exiles 3940 | -9/Exiles | Met 8R-AWN 3968 | -9/Exiles | Met EX-HEX 4098 | -9/Exiles | Visited The Gauntlet 4220 | -9/Exiles | Met EX-DEC 4284 | -9/Exiles | Met EX-BIN 4346 | -9/Exiles | Learned location of Zion (-7) 4658 | -9/Exiles | Discovered new exit (range 10) 4771 | -9/Exiles | Entered Mines 4927 | -8/Mines | Discovered exit to Materials (range 12) 4993 | -8/Mines | Discovered exit to Materials (range 9) 5121 | -8/Mines | Entered Materials 5121 | -8/Materials | Evolved 2 slots: Utility x1, Weapon x1 5122 | -8/Materials | Identified exit to Factory 5123 | -8/Materials | Loaded intel: 9 trap records 5183 | -8/Materials | Destroyed 7 combat bots 5416 | -8/Materials | Build established: Scavenger-Tank 5664 | -8/Materials | Garrison activated, responded to threat 6418 | -8/Materials | Discovered exit to Factory (range 7) 6796 | -8/Materials | Destroyed 7 combat bots 7351 | -8/Materials | Repaired Broken Exp. Sensor Array? 7843 | -8/Materials | Discovered exit to Factory (range 8) 8165 | -8/Materials | Identified exit to Garrison 8201 | -8/Materials | Entered Garrison 8209 | -8/Garrison | Installed Relay Interface Framework 8288 | -8/Garrison | Triggered checkpoint 8323 | -8/Garrison | Garrison Relay disabled 8410 | -8/Garrison | Triggered checkpoint 8418 | -8/Garrison | Triggered checkpoint 8462 | -8/Garrison | Core integrity fell below 50% 8489 | -8/Garrison | Destroyed 14 combat bots 8834 | -8/Garrison | Discovered exit to Factory (range 9) 8892 | -8/Garrison | Triggered checkpoint 8927 | -8/Garrison | Discovered exit to Factory (range 10) 8992 | -8/Garrison | Triggered checkpoint 9029 | -8/Garrison | Garrison Relay disabled 9078 | -8/Garrison | Build established: Tank 9222 | -8/Garrison | Triggered checkpoint 9261 | -8/Garrison | Garrison Relay disabled 9448 | -8/Garrison | Triggered checkpoint 9484 | -8/Garrison | Garrison Relay disabled 9777 | -8/Garrison | Build established: Bothacker-Tank 10063 | -8/Garrison | Entered Factory 10063 | -7/Factory | Evolved 2 slots: Propulsion x1, Utility x1 10347 | -7/Factory | Repaired Exp. Sensor Array 11377 | -7/Factory | Build established: Bothacker-Skirmisher 11473 | -7/Factory | Fabricated Force Field? 11897 | -7/Factory | Identified exit to Garrison 11897 | -7/Factory | Entered Garrison 11920 | -7/Garrison | Triggered checkpoint 11955 | -7/Garrison | Garrison Relay disabled 12077 | -7/Garrison | Phase Generator disabled 12096 | -7/Garrison | Triggered checkpoint 12159 | -7/Garrison | Build established: Bothacker-Tank 12204 | -7/Garrison | Discovered new exit (range 5) 12236 | -7/Garrison | Triggered checkpoint 12270 | -7/Garrison | Garrison Relay disabled 12323 | -7/Garrison | Triggered checkpoint 12381 | -7/Garrison | Spotted B-75 Beast 12416 | -7/Garrison | Lost 3 parts (2n1u) 12427 | -7/Garrison | Destroyed 8 combat bots 12788 | -7/Garrison | Triggered checkpoint 12981 | -7/Garrison | Allies destroyed B-75 Beast 12996 | -7/Garrison | Discovered new exit (range 12) 13098 | -7/Garrison | Garrison Relay disabled 13123 | -7/Garrison | Build established: Bothacker-Skirmisher 13147 | -7/Garrison | Identified exit to Factory 13226 | -7/Garrison | Triggered checkpoint 13268 | -7/Garrison | Triggered checkpoint 13314 | -7/Garrison | Discovered exit to Factory (range 9) 13322 | -7/Garrison | Triggered checkpoint 13404 | -7/Garrison | Garrison Relay disabled 13480 | -7/Garrison | Expanded RIF knowledge: Coupler Efficiency 13652 | -7/Garrison | Entered Factory 13652 | -7/Factory | Accompanied by 1 ally 13696 | -7/Factory | Build established: Bothacker-Tank 14001 | -7/Factory | Build established: Bothacker-Skirmisher 14052 | -7/Factory | First assault squad dispatched 14148 | -7/Factory | Identified exit to Garrison 14148 | -7/Factory | Entered Garrison 14238 | -7/Garrison | Triggered checkpoint 14352 | -7/Garrison | Triggered checkpoint 14667 | -7/Garrison | Discovered new exit (range 9) 14680 | -7/Garrison | Identified exit to Factory 14690 | -7/Garrison | Expanded RIF knowledge: Program Shield 14736 | -7/Garrison | Triggered checkpoint 14786 | -7/Garrison | Garrison Relay disabled 15071 | -7/Garrison | Discovered exit to Factory (range 14) 15100 | -7/Garrison | Triggered checkpoint 15149 | -7/Garrison | Garrison Relay disabled 15456 | -7/Garrison | Build established: Bothacker-Mutant 15612 | -7/Garrison | Triggered checkpoint 15702 | -7/Garrison | Discovered exit to Factory (range 9) 15796 | -7/Garrison | Triggered checkpoint 15797 | -7/Garrison | Core integrity fell below 50% 15847 | -7/Garrison | Garrison Relay disabled 16019 | -7/Garrison | Entered Factory 16019 | -6/Factory | Evolved 2 slots: Power x1, Utility x1 16083 | -6/Factory | Identified exit to Garrison 16120 | -6/Factory | Garrison activated, responded to threat 16124 | -6/Factory | Garrison activated, responded to threat 16144 | -6/Factory | Entered Garrison 16238 | -6/Garrison | Triggered checkpoint 16246 | -6/Garrison | Triggered checkpoint 16268 | -6/Garrison | Triggered checkpoint 16334 | -6/Garrison | Lost 3 parts (1p2n) 16530 | -6/Garrison | Discovered new exit (range 8) 16569 | -6/Garrison | Build established: Bothacker-Tank 16626 | -6/Garrison | Triggered checkpoint 16699 | -6/Garrison | Garrison Relay disabled 16954 | -6/Garrison | Build established: Bothacker-Mutant 16985 | -6/Garrison | Discovered new exit (range 14) 17076 | -6/Garrison | Triggered checkpoint 17144 | -6/Garrison | Garrison Relay disabled 17355 | -6/Garrison | Discovered new exit (range 8) 17377 | -6/Garrison | Identified exit to Factory 17394 | -6/Garrison | Expanded RIF knowledge: Autooverride 17472 | -6/Garrison | Triggered checkpoint 17572 | -6/Garrison | Garrison Relay disabled 17746 | -6/Garrison | Triggered checkpoint 17885 | -6/Garrison | Build established: Botlord-Mutant 17968 | -6/Garrison | Triggered checkpoint 18004 | -6/Garrison | Garrison Relay disabled 18344 | -6/Garrison | Entered Factory 18344 | -5/Factory | Evolved 2 slots: Propulsion x1, Utility x1 18704 | -5/Factory | Lost 4 parts (1p1n1u1w) 18855 | -5/Factory | Lost 3 parts (1p2n) 18929 | -5/Factory | Build established: Botlord-Tank 18944 | -5/Factory | First assault squad dispatched 19622 | -5/Factory | Build established: Botlord-Skirmisher 19717 | -5/Factory | Lost 4 parts (1n3u) 20229 | -5/Factory | Lost 5 parts (1p2n1u1w) 20231 | -5/Factory | Garrison activated, responded to threat 20333 | -5/Factory | Discovered new exit (range 16) 20394 | -5/Factory | Identified exit to Extension 20396 | -5/Factory | Entered Extension 20416 | -5/Extension | Disrupted transfer network 20567 | -5/Extension | Rescued a captive Derelict 20567 | -5/Extension | Rescued a captive Derelict 20579 | -5/Extension | Build established: Scavenger-Gunner 20642 | -5/Extension | Rescued a captive Derelict 20767 | -5/Extension | Rescued A7 20996 | -5/Extension | First assault squad dispatched 21517 | -5/Extension | Spotted B-75 Beast 21555 | -5/Extension | Spotted B-75 Beast 21583 | -5/Extension | Destroyed B-75 Beast 21851 | -5/Extension | Rescued a captive Derelict 21852 | -5/Extension | Rescued a captive Derelict 21932 | -5/Extension | Build established: Botlord-Gunner 22140 | -5/Extension | Lost 3 parts (1p1n1u) 22338 | -5/Extension | Lost 5 parts (1n1u3w) 22365 | -5/Extension | System corruption reached 10% 22470 | -5/Extension | Rescued a captive Derelict 22473 | -5/Extension | Rescued a captive Derelict 22493 | -5/Extension | Rescued a captive Derelict 22494 | -5/Extension | Rescued a captive Derelict 22695 | -5/Extension | System corruption reached 30% 22703 | -5/Extension | Discovered new exit (range 3) 22703 | -5/Extension | Identified exit to Factory 22735 | -5/Extension | Build established: Bothacker-Mutant 22803 | -5/Extension | Entered Factory 22803 | -4/Factory | Accompanied by 5 allies 22803 | -4/Factory | Evolved 2 slots: Propulsion x1, Utility x1 23420 | -4/Factory | Build established: Bothacker-Gunner 23693 | -4/Factory | System corruption reached 10% 23937 | -4/Factory | Destroyed 7 combat bots 23972 | -4/Factory | Lost 5 parts (1n1u3w) 24103 | -4/Factory | Cargo convoy interrupted 24106 | -4/Factory | System corruption reached 30% 24108 | -4/Factory | Released all parts (7) 24109 | -4/Factory | Core integrity fell below 50% 24112 | -4/Factory | Core integrity fell below 20% 24113 | -4/Factory | Destroyed by H-71 Marshal with Heavy Mass Driver Last Messages --------------- 24109_ U-05 Engineer lays Concrete. 24110_ Acquired 1 matter. 24110_ Jacked A-27 Freighter... >>drop_inventory Dumping inventory... 4x Hvy. Wave Gun 3x Imp. Quantum Reactor 2x Beam Splitter 3x Mni. Fusion Reactor 3x Cld. Linear Gravjet Insufficient room to drop 8 parts. 24110_ U-05 Engineer lays Concrete. 24110_ Penetrated by Slug. 24110_ Slug penetrates Wall. 24110_ Imp. Remote Datajack destroyed. 24111_ Knocked back. 24111_ P-70 Sage knocked back. 24111_ Acquired Hvy. Wave Gun. 24111_ Assembly Bed disabled. 24112_ Penetrated by Slug. Map ----- +----------------------------------------------------+ | ???????? #????????????????????????????????????? | | ???????# #????????????????????????????????????? | | ???????# #????????????????????????????????????? | | ???????# #????????????????????????????????????? | | ###????# #????????????????????????????????????? | | #????+ #????????????????????????????????????? | | #????# #????????????????????????????????????? | | #????# #????????????????????????????????????? | | #????# #????????????????????????????????????? | | ###### #######+?????????????????????????????? | | ^ ??????????????????????????????? | | ^ #????????????????????????????????? | | ^ #????????????????????????????????? | | #???? ???????????????????????????? | | %#???? ??????????????????????????? | | % #????? ??????????????????????????? | | ^ = #???? ?????????????????????????? | | # T### #### #????"" ?????#???????????????????? | | ####?# #??# #??"""" """" #???????????????????? | | # #??# #??# # """" """" #???????????????????? | | ?# #?# #??# # """" """" #???????????????????? | | ######+#### # """" """" #???????????????????? | | % # # """" """ #???????????????????? | | # # =** #???????????????????? | | # # = ***![*?????????????????????? | | # ###+##"!#@###### #####???????????? | | # ![% !=[%% !%[=%[[ #???????????? | | """" ""[ + ![![ *%/i!!=A%H=% #???????????? | | """" """" # =|=[% %xh%%h=!! " ????????? | | """" """" # !!=%[%[mp!!|!!! # ????????? | | """" """" # =*%%==!%!h!=[=%! #???????????? | | """" """" #########x%############/##/#???????????? | | """" """"!#?## !=%%*! #??????? ?????????????? | | !] [! =#??# %%!=== #???????? #???????????? | | ###########??# !! ##?????????#???????????? | | #########????# ##?????????????????????? | | #????# #??????????????????????? | | """ #????# !%! #??????????????????????? | | "Y" #????# ! #??????????????????????? | | " #????# #??????????????????????? | | " #????# #??????????????????????? | | " ] #????# #??????????????????????? | | #????# #??????????????????????? | | " """ #????# #??????????????????????? | | " """ #????#+##+#########??????????????????????? | | " """ #????# ? ???????????????????????????????? | | #????# ? ???????????????????????????????? | | #????? ? ???????????????????????????????? | | #####+###????? ? ???????????????????????????????? | | ?????????????? ??????????????????????????????????? | +----------------------------------------------------+ Best States ------------- Heat Dissipation 67 Energy Generation 45 Energy Capacity 580 Matter Stores 300 Matter Capacity 300 Sight Range 16 Robot Scan Range 20 Terrain Scan Range 16 Terrain Scan Density 10 Jamming Range 16 Armor Coverage 600 Resistance: TH 10 Weapon Cycling 20 Evasion (%) 55 Targeting Accuracy 8 Target Analysis 6 Core Analysis 6 Recoil Reduction 5 Salvage Targeting 3 Relay Coupler Types 3 Relay Coupler Value 83 Item Schematics ----------------- Hcp. Storage Unit | -9/Materials | Hacked Exp. Sensor Array | -9/Materials | Scanalyzed Huge Storage Unit | -9/Materials | Scanalyzed Med. Armor Plating | -9/Materials | Scanalyzed Hvy. Armor Plating | -8/Materials | Hacked Arm. Treads | -8/Materials | Scanalyzed Hrd. Medium Armor Plating | -8/Materials | Scanalyzed Hrd. Heavy Armor Plating | -8/Materials | Scanalyzed Arm. Huge Wheel | -7/Factory | Scanalyzed Graphene Brace | -7/Factory | Scanalyzed Remote Datajack | -7/Factory | Scanalyzed Robot Schematics ------------------ None Fabricated ------------ Force Field | x2 | -7/Factory | Preloaded Alien Tech Used ----------------- None Achievements -------------- None Challenges ------------ None Game ------ Seed LauncherLongswordAnalyzer Manual? 0 Play Time 02:37:27 Cumulative 548.7 hours Start 2022.03.18 @ 17:42:14 End 2022.03.20 @ 11:37:06 Sessions 3 Manual Loads 0 Difficulty Rogue Special Mode None Game No. 345 Rogue 345 Adventurer 0 Explorer 0 Win Type - Total 6 Types 4/0/1/0/1/0/0/0/0 Lore% 82 Gallery% 82 Achievement% 73 Wizard Run 0 Options --------- ASCII 0 Keyboard 0 Movement Mouse Keybinds 1 Fullscreen 2 Font 24/Smallcaps Map View 68x50 Tactical HUD 1 Map Filters NONE Filters NONE Steam 1 RUN: 13f7728d-11bb-4dcd-a94d-fac4342735a0